Cogmind - Beta 15 @@@ ROGUE MODE // 2025.06.01 @ 11:52:54 Player: SUBSUB Result: Destroyed by P-70 Sage with High-powered Shock Rifle Performance ------------- Evolutions (5) 2500 Regions Visited (10) 2000 Robots Destroyed (151) 755 Value Destroyed (5389) 5389 Prototype IDs (12) 240 Alien Tech Used (0) 0 Bonus (1253) 1253 TOTAL SCORE: 12137 Bonus ------- Follower Combat Kills 511 Registered with UFD 300 Met Optimus in HQ 500 Friendly Fire -58 Cogmind --------- Core Integrity 0/1000 Matter 285/300 Energy 68/100 System Corruption 4% Temperature Cool (0) Movement Rolling (100) Location -5/Factory Parts ------- > --- POWER (2) -------- (None) > --- PROPULSION (4) --- Armored Huge Wheel > --- UTILITY (8) ------ Advanced Signal Interpreter Surveybot 17 Chip Advanced Salvage Targeting Computer Advanced Targeting Computer Core Analyzer > --- WEAPON (3) ------- Heavy Machine Gun > --- INVENTORY (5) ---- Wheel Advanced Weight Redist. System Point Defense System Heavy Ion Cannon Advanced Plasma Cannon Peak State ------------ > --- POWER ------------ Light Ion Engine Light Fission Core > --- PROPULSION ------- Flexi-carbon Leg Shield Leg Wheel Compact Wheel > --- UTILITY ---------- Huge Storage Unit Triangulator Improved Sensor Array Advanced Signal Interpreter Surveybot 17 Chip Advanced Salvage Targeting Computer Advanced Targeting Computer Phase Shifter > --- WEAPON ----------- Heavy Assault Rifle Enhanced Coil Gun Heavy Flail > --- INVENTORY -------- Nuclear Pulse Thruster High-capacity Matter Pod Advanced Weight Redist. System Improved Melee Analysis Suite Core Analyzer Matter Filter Matter Filter Advanced Particle Charger Improved Medium Armor Plating Focal Shield Remote Shield Point Defense System Tesla Rifle Long-range Proton Cannon Long-range Proton Cannon Long-range Proton Cannon Heavy Ion Cannon Heavy Ion Cannon Advanced Plasma Cannon Gauss Rifle Proton Missile Launcher Mini Grenade Launcher Plasma Cutter [Rating: 77] Favorites ----------- Power Reinforced Deuterium Engine Engine Reinforced Deuterium Engine Power Core Light Fission Core Propulsion Light Treads Treads Light Treads Leg Flexi-carbon Leg Wheel Wheel Flight Unit Nuclear Pulse Thruster Utility Advanced Targeting Computer Device Cooling System Storage Huge Storage Unit Processor Advanced Targeting Computer Protection Powered Armor Weapon Enhanced Autogun Energy Gun Heavy Particle Gun Ballistic Gun Enhanced Autogun Ballistic Cannon Magnetic Acceleration Cannon Launcher Mini Grenade Launcher Special Weapon Plasma Cutter Impact Weapon Heavy Flail Build | -11 -10 -9 -9 -8 -8 -8 -8 -6 -6 -5 ------- Run | Yrd Mat Mat Min Mat Sto Rec Scr Fac Ext Fac Slots Evolved 10 | . . 2 . 2 . . . 4 . 2 Power 1 | . . . . . . . . 1 . . Propulsion 2 | . . 1 . 1 . . . . . . Utility 6 | . . 1 . 1 . . . 3 . 1 Weapon 1 | . . . . . . . . . . 1 Parts Attached 157 | 8 20 14 2 30 13 . 3 12 16 39 Power 14 | 1 2 2 . 2 . . . 2 1 4 Engine 10 | 1 2 2 . 1 . . . 2 1 1 Core 4 | . . . . 1 . . . . . 3 Reactor . | . . . . . . . . . . . Propulsion 50 | 3 8 5 1 7 6 . 2 2 4 12 Treads 18 | . 2 2 1 4 3 . 2 2 2 . Leg 11 | . . . . 1 2 . . . 1 7 Wheel 20 | 3 6 3 . 2 1 . . . 1 4 Hover . | . . . . . . . . . . . Flight 1 | . . . . . . . . . . 1 Utility 52 | 2 5 3 . 10 3 . 1 6 7 15 Device 21 | 1 2 1 . 4 2 . . 3 1 7 Storage 8 | 1 2 . . 2 1 . . . 1 1 Processor 11 | . . . . 3 . . 1 1 . 6 Hackware . | . . . . . . . . . . . Protection 12 | . 1 2 . 1 . . . 2 5 1 Artifact . | . . . . . . . . . . . Weapon 41 | 2 5 4 1 11 4 . . 2 4 8 Energy Gun 8 | 2 2 2 . . . . . . 1 1 Energy Cannon . | . . . . . . . . . . . Ballistic Gun 20 | . 1 1 . 9 1 . . 1 1 6 Ballistic Cannon 3 | . . . . 1 . . . 1 . 1 Launcher 5 | . 1 . 1 . 2 . . . 1 . Special Weapon 3 | . 1 . . . 1 . . . 1 . Impact Weapon 2 | . . 1 . 1 . . . . . . Slashing Weapon . | . . . . . . . . . . . Piercing Weapon . | . . . . . . . . . . . Special Melee Weapon . | . . . . . . . . . . . Unidentified Prototypes 4 | . . 2 . 1 . . . . . 1 Corrupted Parts 2 | . . . . . . . . . 2 . System Corruption 13 | . . . . . . . . . 13 . Parts Lost 72 | . 7 1 . 3 2 . . . 12 47 Power 9 | . 2 . . . . . . . 1 6 Propulsion 23 | . 1 1 . 1 2 . . . 5 13 Utility 24 | . 1 . . 2 . . . . 5 16 Weapon 16 | . 3 . . . . . . . 1 12 Highest Loss Streak 21 | . 3 1 . 1 2 . . . 4 21 To Critical Strikes . | . . . . . . . . . . . Average Backups 19 | 4 12 14 14 14 15 18 23 24 22 15 Power 1 | . 1 . . 2 2 3 3 1 . . Propulsion 1 | 3 4 2 2 . . 1 2 1 . . Utility 7 | . 4 6 7 4 3 3 6 11 12 6 Weapon 7 | . 1 5 5 7 7 8 10 9 7 7 Tool/Special . | . . . . . . . . . . . Unused Backups 37 | 2 . 4 1 9 2 . 5 2 . 12 Power 3 | . . . . 3 . . . . . . Propulsion 7 | 2 . . . 1 . . 4 . . . Utility 13 | . . 4 . 2 1 . 1 1 . 4 Weapon 13 | . . . 1 3 1 . . 1 . 7 Tool/Special 1 | . . . . . . . . . . 1 Average Slot Usage (%) 94 | . 95 99 100 97 99 96 93 92 92 83 Engine 10 | . 13 11 11 7 9 9 9 12 13 5 Treads 23 | . 10 8 11 27 32 27 31 26 22 3 Wheel 6 | . 17 23 21 6 1 9 4 . 1 5 Device 11 | . 10 11 11 9 9 9 9 19 11 12 Storage 8 | . 14 11 11 12 8 9 9 6 6 7 Processor 12 | . . . . 9 18 18 18 13 12 15 Protection 3 | . . 10 11 3 . . . . 9 6 Energy Gun 3 | . 25 11 11 1 . . . . . 1 Ballistic Gun 9 | . . 8 10 16 16 14 11 7 5 7 Ballistic Cannon 1 | . . . . . . . . 5 4 1 Peak Build Rating 77 | 7 8 18 18 31 30 31 36 59 60 77 Average Rating 36 | 5 7 15 17 26 28 29 31 53 57 59 On Entrance 25 | . 7 8 18 18 29 30 23 36 59 55 Naked Turns . | . . . . . . . . . . . Heaviest Build 159 | 15 31 37 38 54 103 103 103 136 149 159 Greatest Support 83 | 26 40 40 63 83 80 12 60 78 76 70 Greatest Overweight (x) 35 | . 2 3 1 4 10 8 8 1 14 35 Average Overweight (x) 3 | . . 1 . 1 2 8 4 1 2 7 Largest Inventory Capacity 25 | 8 15 15 15 15 25 25 25 25 25 25 Average Capacity 22 | 7 14 15 15 15 23 25 25 25 25 24 Most Carried 25 | 8 15 15 15 15 17 20 25 25 25 24 Average Carried 19 | 4 12 14 14 14 15 18 23 24 22 15 Final Capacity 25 | 8 15 15 15 15 25 25 25 25 25 5 Final Carried 25 | 8 15 15 15 15 16 20 25 25 17 5 Class Distribution -------------------- 35% | Mutant 33% | Commander-Mutant 14% | Scavenger-Mutant 11% | Derelict-Scrapper Dominant Class ---------------- Mutant | -10/Materials Mutant | -9/Materials Mutant | -9/Mines Mutant | -8/Materials Scavenger-Mutant | -8/Storage Commander-Mutant | -8/Recycling Commander-Mutant | -8/Scraptown Derelict-Scrapper | -6/Factory Mutant | -6/Extension Scavenger-Mutant | -5/Factory Resources | -11 -10 -9 -9 -8 -8 -8 -8 -6 -6 -5 ----------- Run | Yrd Mat Mat Min Mat Sto Rec Scr Fac Ext Fac Matter Collected 6304 | 359 313 288 148 637 1175 287 76 718 1289 1014 Remotely . | . . . . . . . . . . . Salvage Created 6721 | 191 550 469 58 574 1221 87 . 926 1169 1476 Parts 301 | 18 32 21 4 29 50 2 . 37 46 62 Haulers Intercepted 6 | . 1 . . . 1 . . 2 1 1 Recyclers Shooed 10 | . . . . 1 2 . . 2 . 5 Parts Field Recycled . | . . . . . . . . . . . Retrieved Matter . | . . . . . . . . . . . Parts Self-Destructed . | . . . . . . . . . . . Prevented . | . . . . . . . . . . . Kills | -11 -10 -9 -9 -8 -8 -8 -8 -6 -6 -5 ------- Run | Yrd Mat Mat Min Mat Sto Rec Scr Fac Ext Fac Combat Hostiles Destroyed 106 | . 18 9 3 11 17 . . 10 16 22 Melee 3 | . 2 1 . . . . . . . . Guns 66 | . 12 6 2 11 12 . . 5 7 11 Cannons 13 | . . . . . . . . 5 3 5 AOE 17 | . 4 . 1 . 5 . . . 4 3 Classes Destroyed 15 | 3 4 1 1 1 3 . . 1 1 . Worker 5 | 2 . . . 1 1 . . . . 1 Builder 7 | . . . . . 1 . . . . 6 Tunneler 6 | 3 . 2 . 1 . . . . . . Hauler 6 | . 1 . . . 1 . . 2 1 1 Recycler 13 | 1 . . . 2 2 1 . 2 2 3 Watcher 8 | . 2 1 . . 1 . . 2 2 . Swarmer 17 | . 6 . . 4 . . . . 3 4 Grunt 49 | . 12 5 2 2 13 . . 1 5 9 Brawler 2 | . . . . . 1 . . . 1 . Duelist 1 | . . . . . 1 . . . . . Sentry 18 | . . 4 . 4 1 . . 4 5 . Hunter 7 | . . . . 1 1 . . . . 5 Programmer 10 | . . . . . . . . 6 . 4 Behemoth 2 | . . . . . . . . . 2 . Assembled 1 | . . . 1 . . . . . . . Best Kill Streak 8 | 3 7 2 2 5 8 1 . 2 4 8 Combat Bots Only 7 | . 7 2 2 4 7 . . 2 3 4 Max Kills in Single Turn 3 | 1 3 1 1 1 2 1 . 1 1 2 Gunslinging . | . . . . . . . . . . . Exploded 3 | . 3 . 1 . 2 . . . 1 1 Melee 1 | . 1 1 . . . . . . . . Uniques/NPCs Destroyed . | . . . . . . . . . . . Combat | -11 -10 -9 -9 -8 -8 -8 -8 -6 -6 -5 -------- Run | Yrd Mat Mat Min Mat Sto Rec Scr Fac Ext Fac Hostile Shots Fired 1233 | . 103 42 2 86 61 . . 184 312 443 Missed 334 | . 17 16 1 20 18 . . 75 89 98 Deflected 3 | . . . . . . . . . . 3 Hits 899 | . 86 26 1 66 43 . . 109 223 345 Projectile 899 | . 86 26 1 66 43 . . 109 223 345 AOE 1 | . . . . 1 . . . . . . Critical Strikes 22 | . 2 1 . 4 2 . . 1 4 8 Part Disruptions 1 | . . . . 1 . . . . . . Damage Taken 12556 | . 1021 335 54 1215 815 . . 871 2979 5266 Core 1844 | . 198 63 . 167 161 . . 102 142 1011 Absorbed by Shields 133 | . . . . . . . . 128 . 5 Ignored by Resistances 247 | . . . . . . . . . 42 205 Regen/Repaired (Parts) 891 | . . . . 78 480 . . 35 298 . Core Remaining (%) 63 | 100 20 . 84 . . . 40 . 71 . Volleys Fired 516 | 10 63 30 7 58 69 4 . 65 112 98 Largest 3 | 2 2 2 2 2 2 2 . 2 2 3 Hottest 155 | 100 100 78 88 78 64 50 . 74 155 155 Shots Fired 937 | 20 111 47 14 115 127 8 . 130 202 163 Gun 758 | 20 105 47 11 114 112 8 . 87 125 129 Cannon 122 | . . . . 1 . . . 43 49 29 Launcher 48 | . 3 . 3 . 15 . . . 22 5 Special 9 | . 3 . . . . . . . 6 . Kinetic 661 | . 9 17 4 108 112 8 . 130 142 131 Thermal 227 | 20 99 30 7 7 . . . . 38 26 Explosive 30 | . 3 . 3 . 10 . . . 9 5 Electromagnetic 19 | . . . . . 5 . . . 13 1 Robot Hit Streak 42 | 6 13 35 42 14 29 4 . 27 22 14 Robot Miss Streak 6 | 1 3 1 1 3 4 1 . 2 3 6 Penetration Max 1 | . . . . 1 . . . . 1 1 Secondary Targets 1 | . . . . . 1 . . . . . Max Gunslinging Chain 1 | . . . . . 1 . . . . . Shots Hit Robots 706 | 13 75 47 9 87 85 7 . 104 150 129 Core Hits 290 | 7 37 12 4 30 42 2 . 33 53 70 Critical Kills 5 | . . . . . . . . 1 2 2 Critical Parts Destroyed 12 | . . 2 . 1 . . . . 6 3 Critical Strikes 38 | . 5 4 . 2 . . . 3 18 6 Burn 13 | . 5 2 . . . . . . 6 . Destroy 15 | . . . . 2 . . . 1 8 4 Blast 7 | . . . . . . . . 2 4 1 Smash 3 | . . 2 . . . . . . . 1 Melee Attacks 51 | . . 18 1 1 9 . . 2 . 20 Impact 51 | . . 18 1 1 9 . . 2 . 20 Slashing . | . . . . . . . . . . . Piercing . | . . . . . . . . . . . Sneak Attacks 6 | . . 1 . . . . . . . 5 Combat Hostiles . | . . . . . . . . . . . Follow-up Attacks . | . . . . . . . . . . . Damage Inflicted 16499 | 172 1200 945 245 1554 1889 114 . 2401 3416 4563 Guns 10376 | 172 876 710 126 1540 1382 114 . 1383 1860 2213 Cannons 2486 | . . . . . . . . 999 977 510 Explosions 2228 | . 302 . 119 . 477 . . . 506 824 Melee 1251 | . . 235 . . . . . . . 1016 Ramming 85 | . 22 . . 14 30 . . 19 . . Kinetic 10021 | . 66 200 29 1408 1382 114 . 2382 2169 2271 Thermal 3028 | 172 810 510 97 132 . . . . 741 566 Explosive 1308 | . 302 . 119 . 122 . . . 82 683 Electromagnetic 806 | . . . . . 355 . . . 424 27 Impact 1251 | . . 235 . . . . . . . 1016 Slashing . | . . . . . . . . . . . Piercing . | . . . . . . . . . . . Highest Corruption 16 | . 1 . . . 7 7 . 2 16 3 Average Corruption 3 | . 1 . . . 6 7 . 1 3 2 Corruption Purged . | . . . . . . . . . . . Corruption Blocked . | . . . . . . . . . . . Effects 190 | . 3 . . . 32 52 . 26 57 20 Message Errors 50 | . . . . . 6 18 . 8 14 4 Matter Fused 47 | . . . . . 11 8 . 7 13 8 Heat Flow Errors 33 | . 1 . . . 5 10 . 4 10 3 Energy Discharges 23 | . 1 . . . 2 7 . 5 7 1 Data Loss (minor) 16 | . . . . . 5 6 . . 5 . Data Loss (major) 5 | . . . . . . 2 . 1 1 1 Misfires 9 | . 1 . . . 1 . . 1 4 2 Alerts 4 | . . . . . 1 1 . . 2 . Weapon Failures 3 | . . . . . 1 . . . 1 1 Overload Shots . | . . . . . . . . . . . Overflow Damage 553 | . 18 82 3 . . . . 100 . 350 Projectiles 120 | . . . . . . . . 100 . 20 Explosions 80 | . 18 . 3 . . . . . . 59 Melee 353 | . . 82 . . . . . . . 271 Knockbacks 24 | . . 2 . . . . . 10 3 9 Impact 5 | . . 2 . . . . . . . 3 Kinetic 19 | . . . . . . . . 10 3 6 Secondary . | . . . . . . . . . . . Self-Inflicted Damage 348 | . 65 . 41 5 108 . . . 20 109 Shots 15 | . 3 . 2 . 3 . . . 3 4 Rammed 14 | . 9 . . 2 1 . . 2 . . Targets Rammed 15 | . 10 . . 2 1 . . 2 . . Kicked . | . . . . . . . . . . . Crushed 1 | . 1 . . . . . . . . . Highest Temperature 697 | 137 313 153 129 16 240 247 . 244 697 627 Average Temperature 110 | 67 96 46 55 8 86 83 . 74 109 179 Received Heat Transfer 3343 | . 504 171 9 324 396 . . 163 1077 699 Effects 34 | . . . . . . . . . 19 15 Shutdowns 9 | . . . . . . . . . 2 7 Energy Bleed 4 | . . . . . . . . . 2 2 Interference 7 | . . . . . . . . . 7 . Matter Decay 1 | . . . . . . . . . . 1 Short Circuit 2 | . . . . . . . . . . 2 Damage (minor) 4 | . . . . . . . . . 2 2 Damage (major) 7 | . . . . . . . . . 6 1 Siege Activations . | . . . . . . . . . . . Martial Activations . | . . . . . . . . . . . Shielding Activations 1 | . . . . . . . . . . 1 Total Turns 24 | . . . . . . . . . . 24 Longest Duration 24 | . . . . . . . . . . 24 Robots Disrupted . | . . . . . . . . . . . Combat Hostiles . | . . . . . . . . . . . Robots Corrupted 8 | . . 2 . . . . . . 1 5 Combat Hostiles 5 | . . 2 . . . . . . 1 2 Parts Fried 18 | . . 2 . 1 1 . . . 3 11 Impact Corruptions 14 | . . 3 . . . . . . . 11 Robots Melted 2 | . . . . . . . . . 1 1 Combat Hostiles 2 | . . . . . . . . . 1 1 Parts Melted 18 | 3 5 5 . . . . . . 1 4 Heat Transferred 8296 | 518 2584 1110 185 259 . . . . 2590 1050 Parts Sabotaged . | . . . . . . . . . . . Parts Stolen . | . . . . . . . . . . . Parts Stripped . | . . . . . . . . . . . Power Chain Reactions 1 | . . . . . . . . . 1 . Alert | -11 -10 -9 -9 -8 -8 -8 -8 -6 -6 -5 ------- Run | Yrd Mat Mat Min Mat Sto Rec Scr Fac Ext Fac Maximum Alert Level 1 | . . . . . 1 . . . 1 1 Low Security (%) 91 | 100 100 100 100 100 82 100 . 100 86 63 Level 1 8 | . . . . . 17 . . . 13 36 Level 2 . | . . . . . . . . . . . Level 3 . | . . . . . . . . . . . Level 4 . | . . . . . . . . . . . Level 5 . | . . . . . . . . . . . High Security . | . . . . . . . . . . . Max Security . | . . . . . . . . . . . Peak Influence 345 | 10 166 73 70 94 327 121 . 142 296 345 Initial 144 | . . 48 . . 13 121 . . 33 144 Average 57 | 1 83 16 9 21 78 12 . 41 63 169 Influence Increases 4986 | 30 591 346 86 416 768 120 . 692 729 1208 Destroy 0b10 Robot/C 2420 | . 360 180 40 220 400 60 . 360 360 440 Destroy 0b10 Robot/NC 240 | 30 15 15 . 20 35 5 . 35 30 55 Destroy Leader 586 | . 86 62 10 70 84 . . 156 46 72 Allied During Kill 205 | . . . . . 57 45 . 97 6 . Successful Hack 118 | . 25 9 . 44 14 10 . 5 11 . Select Force Hacks 90 | . 60 30 . . . . . . . . Disable Machine 480 | . . . 15 30 105 . . 30 30 270 Destroy Structure 427 | . 15 5 21 2 73 . . 9 36 266 Lose Combat Pursuer 420 | . 30 45 . 30 . . . . 210 105 Influence Decreases 4670 | 30 475 462 86 385 487 432 . 623 503 1187 Entered New Map 464 | . . 68 . . 18 191 . . 36 151 Time Decay 3278 | 30 405 384 86 365 449 241 . 495 257 566 Lost Part 700 | . 70 10 . 20 20 . . . 110 470 Lost Ally 228 | . . . . . . . . 128 100 . Squads Dispatched 39 | . 5 2 . 2 6 . . 13 3 8 Investigation 11 | . 4 1 . . . . . 1 2 3 Extermination 7 | . . . . . . . . 5 . 2 Reinforcement 12 | . 1 1 . 2 3 . . 1 1 3 Assault . | . . . . . . . . . . . Garrison 9 | . . . . . 3 . . 6 . . Intercept . | . . . . . . . . . . . Searches Triggered . | . . . . . . . . . . . Construction Impeded 5 | . . . . . 1 . . . 1 3 Haulers Reinforced 1 | . . . . . . . . 1 . . Active Scanning Responses . | . . . . . . . . . . . Cargo Convoy Interrupts . | . . . . . . . . . . . Stealth | -11 -10 -9 -9 -8 -8 -8 -8 -6 -6 -5 --------- Run | Yrd Mat Mat Min Mat Sto Rec Scr Fac Ext Fac Distress Signals 14 | . 1 4 . 3 2 . . . 1 3 Communications Jammed . | . . . . . . . . . . . Distress Signals . | . . . . . . . . . . . Times Spotted 203 | . 30 20 3 32 28 2 . 19 36 33 Peak Tracking Total 8 | . 6 3 2 6 8 1 . 3 4 8 Tactical Retreats 21 | . 1 3 . 2 . . . . 12 3 Traps | -11 -10 -9 -9 -8 -8 -8 -8 -6 -6 -5 ------- Run | Yrd Mat Mat Min Mat Sto Rec Scr Fac Ext Fac Traps Triggered 11 | . 3 . . 1 4 . . 1 2 . Indirectly . | . . . . . . . . . . . Trap Hack Attempts . | . . . . . . . . . . . Triggered . | . . . . . . . . . . . Disarmed . | . . . . . . . . . . . Reprogrammed . | . . . . . . . . . . . Reused . | . . . . . . . . . . . Traps Extracted . | . . . . . . . . . . . Installed . | . . . . . . . . . . . Triggered . | . . . . . . . . . . . Machines | -11 -10 -9 -9 -8 -8 -8 -8 -6 -6 -5 ---------- Run | Yrd Mat Mat Min Mat Sto Rec Scr Fac Ext Fac Machines Disabled 34 | . . . 1 2 7 . . 2 4 18 Max in Single Turn 7 | . . . 1 1 1 . . 1 2 7 Machines Repaired . | . . . . . . . . . . . Machines Dismantled 5 | . . . . . 3 . . . 2 . Machines Sabotaged . | . . . . . . . . . . . Overloaded Fab Kills . | . . . . . . . . . . . Hacking | -11 -10 -9 -9 -8 -8 -8 -8 -6 -6 -5 --------- Run | Yrd Mat Mat Min Mat Sto Rec Scr Fac Ext Fac Machines Accessed 55 | . 8 7 . 5 7 5 5 5 7 6 Terminals 38 | . 6 5 . 3 6 5 . 3 6 4 Fabricators 1 | . . . . . . . . 1 . . Repair Stations 3 | . . . . 1 1 . . . 1 . Recycling Units 6 | . 2 1 . . . . . 1 . 2 Scanalyzers 2 | . . 1 . 1 . . . . . . Garrison Access . | . . . . . . . . . . . Total Hacks 122 | . 16 20 . 16 17 8 12 10 12 11 Successful 63 | . 8 11 . 13 5 5 12 3 4 2 Failed 59 | . 8 9 . 3 12 3 . 7 8 9 Catastrophic 12 | . 1 1 . . 1 1 . 4 2 2 Database Lockouts . | . . . . . . . . . . . Manual 79 | . 19 12 . 12 6 6 . 4 9 11 Terminals 85 | . 14 14 . 11 14 8 . 4 11 9 Fabricators 3 | . . . . . . . . 3 . . Repair Stations 6 | . . . . 2 3 . . . 1 . Recycling Units 8 | . 2 1 . . . . . 3 . 2 Scanalyzers 8 | . . 5 . 3 . . . . . . Garrison Access . | . . . . . . . . . . . Terminal Hacks 29 | . 2 1 . 6 3 2 12 2 1 . Record 12 | . . . . 1 . . 11 . . . Robot Schematic 1 | . . . . . . 1 . . . . Robot Analysis 7 | . 1 . . 4 1 1 . . . . Prototype ID Bank 1 | . . 1 . . . . . . . . Open Door 2 | . . . . . . . . 1 1 . Open DSF 1 | . . . . . . . . 1 . . Branch Access Points 1 | . . . . . 1 . . . . . Recall Investigation 1 | . 1 . . . . . . . . . Zone Layout 2 | . . . . 1 1 . . . . . Proto ID Catalog 1 | . . . . . . . 1 . . . Fabricator Hacks 1 | . . . . . . . . 1 . . Load Schematic 1 | . . . . . . . . 1 . . Repair Station Hacks 4 | . . . . 2 2 . . . . . Scan Component 2 | . . . . 1 1 . . . . . Repair 2 | . . . . 1 1 . . . . . Recycling Unit Hacks . | . . . . . . . . . . . Scanalyzer 7 | . . 5 . 2 . . . . . . Insert Component 3 | . . 2 . 1 . . . . . . Analyze 4 | . . 3 . 1 . . . . . . Garrison Access Hacks . | . . . . . . . . . . . Unauthorized Hacks 22 | . 6 5 . 3 . 3 . . 3 2 Terminals 16 | . 4 4 . 3 . 3 . . 2 . Botnet 16 | . 4 4 . 3 . 3 . . 2 . Fabricators . | . . . . . . . . . . . Repair Stations 1 | . . . . . . . . . 1 . Patch 1 | . . . . . . . . . 1 . Recycling Units 5 | . 2 1 . . . . . . . 2 Tunnel 3 | . 2 1 . . . . . . . . Fedlink 1 | . . . . . . . . . . 1 Scrapoids 1 | . . . . . . . . . . 1 Scanalyzers . | . . . . . . . . . . . Garrison Access . | . . . . . . . . . . . Data Cores Recovered . | . . . . . . . . . . . Used . | . . . . . . . . . . . Hacking Detections 38 | . 6 6 . 4 6 3 . 4 5 4 Full Trace Events 5 | . 2 1 . . . . . 1 . 1 Feedback Events . | . . . . . . . . . . . Feedback Blocked . | . . . . . . . . . . . Robot Schematics Acquired 1 | . . . . . . 1 . . . . Robots Built . | . . . . . . . . . . . Authchips . | . . . . . . . . . . . Time . | . . . . . . . . . . . Total Robot Build Rating . | . . . . . . . . . . . Part Schematics Acquired 3 | . . 2 . 1 . . . . . . Parts Built . | . . . . . . . . . . . Authchips . | . . . . . . . . . . . Time . | . . . . . . . . . . . Total Part Build Rating . | . . . . . . . . . . . Parts Repaired 2 | . . . . 1 1 . . . . . Time 52 | . . . . 26 26 . . . . . Parts Recycled . | . . . . . . . . . . . Recycled Matter . | . . . . . . . . . . . Retrieved Matter . | . . . . . . . . . . . Retrieved Components . | . . . . . . . . . . . Parts Scanalyzed 3 | . . 2 . 1 . . . . . . Part Schematics Acquired 3 | . . 2 . 1 . . . . . . Parts Damaged . | . . . . . . . . . . . Bothacking | -11 -10 -9 -9 -8 -8 -8 -8 -6 -6 -5 ------------ Run | Yrd Mat Mat Min Mat Sto Rec Scr Fac Ext Fac Used RIF Installer . | . . . . . . . . . . . Robots Hacked . | . . . . . . . . . . . Non-combat . | . . . . . . . . . . . Combat . | . . . . . . . . . . . Robot Hacks Applied . | . . . . . . . . . . . Relay Couplers Released . | . . . . . . . . . . . Fabnet Peak Effective % . | . . . . . . . . . . . Robots Rewired 6 | . . . . . . . . . 6 . Allies Hacked . | . . . . . . . . . . . Hacks Repelled . | . . . . . . . . . . . Allies | -11 -10 -9 -9 -8 -8 -8 -8 -6 -6 -5 -------- Run | Yrd Mat Mat Min Mat Sto Rec Scr Fac Ext Fac Total Allies 19 | . . . . . 10 . . . 9 . Largest Group 10 | . . . . . 10 10 10 10 4 . Highest-Rated Group 173 | . . . . . 173 173 173 173 153 . Highest-Rated Ally 153 | . . . . . 29 29 29 29 153 . Total Orders . | . . . . . . . . . . . Ally Attacks 126 | . . . . . 16 14 . 76 20 . Total Damage 1778 | . . . . . 98 208 . 970 502 . Kills 19 | . . . . . 3 3 . 10 3 . Allies Corrupted . | . . . . . . . . . . . Allies Melted . | . . . . . . . . . . . Intel | -11 -10 -9 -9 -8 -8 -8 -8 -6 -6 -5 ------- Run | Yrd Mat Mat Min Mat Sto Rec Scr Fac Ext Fac Active Infowar (turns) 9655 | 87 1082 1383 812 213 . . . 2071 2723 1284 Sensors 5533 | . . . . . . . . 2071 2723 739 Terrain 38 | . . . . . . . . . . 38 Seismic 3577 | 87 1082 1383 812 213 . . . . . . Triangulation 1090 | . . . . . . . . . . 1090 Robot Analysis Total 6 | . 1 . . 3 1 1 . . . . Derelict Logs Recovered 1 | . . . 1 . . . . . . . Drone Launches . | . . . . . . . . . . . Drone Recoveries . | . . . . . . . . . . . Exploration | -11 -10 -9 -9 -8 -8 -8 -8 -6 -6 -5 ------------- Run | Yrd Mat Mat Min Mat Sto Rec Scr Fac Ext Fac Turns Passed 22372 | 167 1475 1416 812 2010 1962 1721 4985 2538 3513 1773 Spaces Moved 10037 | 133 799 746 716 1155 667 796 2150 991 1302 582 Core 10 | 5 . . . . . . . . . 5 Treads 4558 | . 257 9 1 609 520 . 1014 991 1145 12 Legs 41 | . . . . . 25 . . . . 16 Wheels 5382 | 128 542 737 715 546 122 796 1136 . 157 503 Hover . | . . . . . . . . . . . Flight 46 | . . . . . . . . . . 46 Fastest Speed 40 | 50 80 95 95 95 160 210 210 205 202 40 Average Speed 182 | 84 114 99 95 142 232 210 226 208 214 219 Slowest Speed 1800 | 100 160 240 160 160 820 210 246 225 730 1800 Overloaded Moves . | . . . . . . . . . . . Propulsion Burnouts . | . . . . . . . . . . . Robots Hopped 1 | . . . . . . . . . . 1 Potential Cave-ins . | . . . . . . . . . . . Cave-ins Triggered . | . . . . . . . . . . . Exploration Rate (%) 60 | 4 95 48 98 63 76 99 92 13 61 13 Regions Visited 10 Branch Regions 5 Pre-discovered Areas 3 | . 2 1 . . . . . . . . Known Exits Taken 6 | . . . 1 1 1 1 1 1 . . Unknown Exits Taken 4 | 1 1 1 . . . . . . 1 . Scrap Searched 9 | . . . 2 . . . 7 . . . Spaces Dug 86 | . 8 4 . 1 22 . . 1 50 . Terrain Destroyed 403 | . 14 4 36 4 94 . . 8 112 131 Melee 11 | . . 4 . 1 5 . . 1 . . Projectile 59 | . 3 . . 3 2 . . 7 8 36 AOE 332 | . 11 . 36 . 87 . . . 103 95 Terrain Rammed 1 | . . . . . 1 . . . . . Walls Destroyed . | . . . . . . . . . . . Machines Disabled 1 | . . . . . 1 . . . . . Actions | -11 -10 -9 -9 -8 -8 -8 -8 -6 -6 -5 --------- Run | Yrd Mat Mat Min Mat Sto Rec Scr Fac Ext Fac Total 13072 | 166 1227 1343 826 1430 931 843 2260 1370 1788 888 Wait 1850 | . 304 492 91 117 110 36 79 271 244 106 Move 10025 | 132 798 745 715 1154 666 795 2149 990 1301 580 Hop 1 | . . . . . . . . . . 1 Pick Up 141 | 12 13 17 1 23 15 2 14 12 5 27 Fast Attach 44 | 6 8 . . 6 3 . 1 . 5 15 Attach 56 | 1 3 3 . 4 1 2 2 4 10 26 Detach 8 | . . . . 1 1 4 1 1 . . Swap 152 | 1 20 21 10 29 25 . 4 12 20 10 Drop 101 | 4 8 17 1 35 8 . 10 9 4 5 Fire 516 | 10 63 30 7 58 69 4 . 65 112 98 Melee 51 | . . 18 1 1 9 . . 2 . 20 Ram 4 | . 1 . . 1 2 . . . . . Kick . | . . . . . . . . . . . Crush 12 | . 9 . . 1 . . . 2 . . Escape Stasis 6 | . . . . . . . . 2 4 . Rewire 68 | . . . . . 1 . . . 67 . Trap . | . . . . . . . . . . . Miscellaneous 37 | . . . . . 21 . . . 16 . Route ------- -11/Scrapyard -10/Materials (discovered 6 exits: *Mat x3 / [*Min x2] / [*Sub]) -9/Materials (discovered 2 exits: *Mat / [*Min]) -9/Mines (discovered 2 exits: *Mat x2) -8/Materials (discovered 3 exits: *Fac x2 / *Sto) -8/Storage -8/Recycling (discovered 2 exits: *Fac / *Scr) -8/Scraptown (discovered 2 exits: *Fac x2) -6/Factory (discovered 2 exits: *Low / *Ext) -6/Extension -5/Factory History --------- Turn | Location | Event 12 | -11/Scrapyard | Discovered new exit (range 16) 168 | -11/Scrapyard | Entered Materials 168 | -10/Materials | Discovered new exit (range 15) 312 | -10/Materials | Build established: Mutant 543 | -10/Materials | Destroyed 7 combat bots 600 | -10/Materials | Core integrity fell below 50% 628 | -10/Materials | Lost 3 parts (1p1u1w) 851 | -10/Materials | Discovered new exit (range 11) 861 | -10/Materials | Discovered new exit (range 13) 919 | -10/Materials | Discovered new exit (range 15) 1007 | -10/Materials | Discovered new exit (range 3) 1506 | -10/Materials | Discovered new exit (range 4) 1643 | -10/Materials | Entered another Materials area 1643 | -9/Materials | Evolved 2 slots: Propulsion x1, Utility x1 2574 | -9/Materials | Discovered new exit (range 10) 2794 | -9/Materials | Discovered new exit (range 16) 3059 | -9/Materials | Entered Mines 3081 | -9/Mines | Met a Derelict bent on vengeance 3133 | -9/Mines | Excavation squad dispatched 3133 | -9/Mines | A large section of the Mines collapsed 3338 | -9/Mines | Discovered new exit (range 13) 3441 | -9/Mines | Received a Rocket Launcher from a helpful Derelict 3551 | -9/Mines | Identified exit to Materials 3871 | -9/Mines | Entered Materials 3871 | -8/Materials | Evolved 2 slots: Propulsion x1, Utility x1 5305 | -8/Materials | Discovered new exit (range 9) 5363 | -8/Materials | Repaired Lgt. Treads 5722 | -8/Materials | Discovered new exit (range 8) 5730 | -8/Materials | Discovered new exit (range 6) 5739 | -8/Materials | Identified exit to Factory 5747 | -8/Materials | Identified exit to Storage 5755 | -8/Materials | Build established: Scavenger-Mutant 5881 | -8/Materials | Entered Storage 6431 | -8/Storage | Garrison activated, responded to threat 6500 | -8/Storage | Repaired Huge Storage Unit 6952 | -8/Storage | Identified exit to Recycling 7318 | -8/Storage | Core integrity fell below 50% 7359 | -8/Storage | Destroyed 7 combat bots 7536 | -8/Storage | Assisted by bots powering up and referring to "LRC-V3" 7843 | -8/Storage | Entered Recycling 7843 | -8/Recycling | Accompanied by 10 allies 7845 | -8/Recycling | Build established: Commander-Mutant 8238 | -8/Recycling | Scanned before Scraplab entrance 8301 | -8/Recycling | Discovered new exit (range 16) 8339 | -8/Recycling | Identified exit to Factory 9536 | -8/Recycling | Entered Scraplab 9560 | -8/Recycling | Discovered new exit (range 3) 9562 | -8/Recycling | Identified exit to Scraptown 9564 | -8/Recycling | Entered Scraptown 9564 | -8/Scraptown | Accompanied by 10 allies 9564 | -8/Scraptown | System corruption cleaned by C-Scrubber 9945 | -8/Scraptown | Visited Symbiants 10016 | -8/Scraptown | Heard Great Nut preacher, LISTEN AND RECITE! 10026 | -8/Scraptown | Visited Spacefarers 10749 | -8/Scraptown | Discovered exit to Factory (range 7) 10896 | -8/Scraptown | Visited Cyclists 10954 | -8/Scraptown | Visited TADAMA 10984 | -8/Scraptown | Visited Bundlers 11128 | -8/Scraptown | Visited Fellowship of the Rings 11185 | -8/Scraptown | Visited Awakened 11669 | -8/Scraptown | Visited UFD Registry 11669 | -8/Scraptown | Registered with UFD as "Fiberdome" 11726 | -8/Scraptown | Visited Science Testing Area 11782 | -8/Scraptown | Visited Abandonware Association 11849 | -8/Scraptown | Learned abandonware demo "POISON.EXE" 11940 | -8/Scraptown | Visited DA-N13 Charitable Foundation 11952 | -8/Scraptown | Found DCF Scrap (27 items) 12187 | -8/Scraptown | Visited Curators Association 12241 | -8/Scraptown | Visited Supply Room 12315 | -8/Scraptown | Visited Cartography Club 12377 | -8/Scraptown | Found Surveybot 17 Chip 13427 | -8/Scraptown | Visited Scrap Suit Storage 13450 | -8/Scraptown | Found Scrap Suit 13527 | -8/Scraptown | Visited Chapter 10 13603 | -8/Scraptown | Visited Scrapoid Pod Storage 13660 | -8/Scraptown | Visited Science Guys 14388 | -8/Scraptown | Met Optimus 14388 | -8/Scraptown | Accepted into 0bPrime 14528 | -8/Scraptown | Discovered exit to Factory (range 5) 14549 | -8/Scraptown | Entered Factory 14549 | -6/Factory | Accompanied by 10 allies 14549 | -6/Factory | Evolved 4 slots: Power x1, Utility x3 14558 | -6/Factory | Identified exit to DSF 14629 | -6/Factory | Garrison activated, responded to threat 14901 | -6/Factory | Lost 5 allies 14954 | -6/Factory | Garrison activated, responded to threat 15153 | -6/Factory | Build established: Mutant 15315 | -6/Factory | Found Powered Armor 15318 | -6/Factory | Found Powered Armor 15573 | -6/Factory | Build established: Derelict-Scrapper 16437 | -6/Factory | Discovered new exit (range 10) 16451 | -6/Factory | Identified exit to Extension 16631 | -6/Factory | Discovered new exit (range 5) 16639 | -6/Factory | Identified exit to Lower Caves 17087 | -6/Factory | Entered Extension 17468 | -6/Extension | Rescued a captive Derelict 17468 | -6/Extension | Rescued a captive Derelict 17727 | -6/Extension | Spotted B-75 Beast 18049 | -6/Extension | Build established: Mutant 18645 | -6/Extension | Build established: Scrapper 18737 | -6/Extension | Disrupted transfer network 19091 | -6/Extension | Build established: Mutant 19939 | -6/Extension | Destroyed B-75 Beast 19966 | -6/Extension | Lost 4 parts (2n1u1w) 20108 | -6/Extension | Spotted B-75 Beast 20174 | -6/Extension | Destroyed B-75 Beast 20201 | -6/Extension | Lost 4 parts (1p2n1u) 20241 | -6/Extension | System corruption reached 10% 20376 | -6/Extension | Rescued A7 20551 | -6/Extension | Build established: Scavenger-Mutant 20582 | -6/Extension | Discovered new exit (range 3) 20600 | -6/Extension | Entered Factory 20600 | -5/Factory | Accompanied by 1 ally (A7) 20600 | -5/Factory | Evolved 2 slots: Utility x1, Weapon x1 20898 | -5/Factory | Build established: Scavenger-Tank 20910 | -5/Factory | Loaded intel: 8 recycling unit locations 21158 | -5/Factory | Lost 9 parts (2p3n4u) 21215 | -5/Factory | Lost 3 parts (1u2w) 21370 | -5/Factory | Lost 9 parts (1p2n2u4w) 22072 | -5/Factory | Build established: Scavenger-Mutant 22112 | -5/Factory | Lost 3 parts (1p1u1w) 22175 | -5/Factory | Scrapoids reinforcements arrived? 22294 | -5/Factory | Core integrity fell below 50% 22323 | -5/Factory | Core integrity fell below 20% 22373 | -5/Factory | Destroyed by P-70 Sage with High-powered Shock Rifle Last Messages --------------- 22336_ Dropped Huge Storage Unit. 22337_ System corrupted: Matter fused (-9). 22337_ Acquired 40 matter. 22337_ Acquired 70 matter. 22339_ Penetrated by Slug. 22339_ Slug penetrates Wall. 22340_ U-05 Engineer lays Concrete. 22341_ Terminal disabled. 22341_ Hvy. Flail destroyed. 22342_ U-05 Engineer lays Concrete. 22343_ M-13 Machinist repairs U-05 Engineer. 22343_ K-01 Serf collects debris. 22343_ U-05 Engineer lays Concrete. 22345_ Slug penetrates Wall. 22345_ Focal Shield destroyed. 22345_ Slug penetrates Wall. 22355_ System corrupted: Substantial component data lost. 22355_ Acquired Arm. Huge Wheel. 22368_ Nuclear Pulse Thruster destroyed. 22373_ Acquired Hvy. Machine Gun. Map ----- +----------------------------------------------------+ | # #??????????????????????????? | | # #??????????????????????????? | | ###????????????????????????? | | #???? ???????????????? | | ### ?????????????? | | ?????????????? | | ### ?????????????? | | #???? ??????????????? | | ##???????# ?????????????? | | %#??????????????????????????? | | #??????????????????????????? | | #??????????????????????????? | | ###????????????????????????? | | #????????????????????????? | | #??????? ??????????????? | | #??????? ?????????????? | | "T #??????? ?????????????? | | #??????# ?????????????? | | #??????# #?????????????? | | #??????# #?????????????? | | #/#######???# #?????????????? | | ]#???# #?????????????? | | #???# #??????######## | | """"" #???# #??????# # | | """"" #???# ####+#?# " # | | """"" #???# #?# @ " # | | """"" #???# #?# " # | | #???# ### " # | | """"" ##### #p " # | | """"" + + " # | | """"" ##### # " # | | """"" ##### # " # | | #######+##### #]! " # | | ########### [ + #] # | | ########### ## # # | | ########?## ## # # | | ########### !! ## ######## | | ########### !! """ ## #??????? | | ########### ! """ ## #??????? | | ######### """ ## #??????? | | ######### ## #??????? | | ###################? ???????? | | #############??????? ???????? | | ############???????? ? ?????? | | #####"""####???????? ????? | | #######"Y"############ ????? | | # # ?????? | | ### ??????? | | """"""""" ???????? | | ### ###????????? | +----------------------------------------------------+ Best States ------------- Heat Dissipation 75 Energy Generation 27 Energy Capacity 480 Matter Stores 458 Matter Capacity 500 Sight Range 16 Robot Scan Range 15 Terrain Scan Range 20 Terrain Scan Density 1210 Armor Coverage 1025 Resistance: KI 20 Resistance: TH 15 Phase Shifting 5 Evasion (%) 62 Targeting Accuracy 8 Melee Accuracy 6 Core Analysis 6 Recoil Reduction 4 Matter Filtering 30 Energy Filtering 30 Salvage Targeting 3 Item Schematics ----------------- Hvy. Particle Gun | -9/Materials | Scanalyzed Lgt. Treads | -9/Materials | Scanalyzed Enh. Autogun | -8/Materials | Scanalyzed Robot Schematics ------------------ M-28 Smith | -8/Recycling | Hacked Fabricated ------------ Nothing Repaired ---------- Lgt. Treads | 44% | -8/Materials Huge Storage Unit | 20% | -8/Storage Alien Tech Used ----------------- None Achievements -------------- Prolific Hacker Tank \\IAMDERELICT Challenges ------------ None Game ------ Seed BombardmentGatlingBallwheel Manual? 0 Play Time 02:49:05 Cumulative 50.0 hours Start 2025.05.31 @ 13:05:58 End 2025.06.01 @ 11:52:54 Sessions 5 Manual Loads 0 Difficulty Rogue Special Mode None Game No. 63 Rogue 63 Adventurer 0 Explorer 0 Win Type - Total 0 Types 0/0/0/0/0/0/0/0/0/0 Lore% 47 Gallery% 31 Achievement% 32 Wizard Run 0 Options --------- Layout 0 ASCII 0 Keyboard 1 Movement Vi Keybinds 0 Fullscreen 1 Font 18/SmallcapsGlow Map View 76x50 Zoom Use 0% Tactical HUD 1 Map Filters NONE Filters NONE Steam 1 RUN: 804af765-d953-43e7-adde-b69f4da34cbe